Cogmind - Beta 11 X9 *** ADVENTURER MODE // 2022.01.08 @ 02:47:26 // Winter2021/Sauler Player: soymachine Result: Destroyed by S-27 Virus with Autogun Performance ------------- Evolutions (5) 2500 Regions Visited (8) 1600 Robots Destroyed (136) 680 Value Destroyed (5362) 5362 Prototype IDs (2) 40 Alien Tech Used (0) 0 Bonus (464) 464 TOTAL SCORE: 10646 Bonus ------- Pacifist 200 High Alert Combat Kills 264 Cogmind --------- Core Integrity 0/1000 Matter 274/300 Energy 190/190 System Corruption 10% Temperature Cool (3) Movement Walking (190) Ox1 Location -5/Factory Parts ------- > --- POWER (2) -------- Light Deuterium Engine Light Angular Momentum Engine > --- PROPULSION (4) --- Carbon-fiber Leg Carbon-fiber Leg Carbon-fiber Leg Flexi-carbon Leg > --- UTILITY (8) ------ Improved Coolant Injector High-capacity Storage Unit Improved Transmission Jammer > --- WEAPON (3) ------- Gauss Rifle Heavy Battle Rifle Enhanced Gauss Cannon > --- INVENTORY (20) --- Micro Fission Core Advanced Heat Sink Gauss Rifle Gauss Rifle Gauss Rifle Remote Datajack Power Maul Peak State ------------ > --- POWER ------------ Fission Core Cold Fusion Reactor > --- PROPULSION ------- Medium Treads Medium Treads Medium Treads Armored Medium Treads > --- UTILITY ---------- Advanced Heat Sink Improved Coolant Injector High-capacity Storage Unit Improved Sensor Array Improved Transmission Jammer Improved Medium Armor Plating Hacking Suite Hacking Suite > --- WEAPON ----------- Neutron Cannon Enhanced Gauss Cannon Enhanced Gauss Cannon > --- INVENTORY -------- Improved Ion Engine Micro Fission Core Medium Treads Medium Treads Medium Treads Medium Treads High-powered Shock Rifle Improved Arc Projector Heavy Phase Cannon Gauss Rifle Gauss Rifle Gauss Rifle Heavy Battle Rifle KE Penetrator KE Penetrator Enhanced Gauss Cannon Improved Proton Missile Launcher Rocket Launcher Remote Datajack Power Maul [Rating: 86] Favorites ----------- Power Cold Fusion Reactor Engine Light Ion Engine Power Core Micro Fission Core Reactor Cold Fusion Reactor Propulsion Light Treads Treads Light Treads Leg Aluminum Leg Utility High-capacity Storage Unit Device Improved Transmission Jammer Storage High-capacity Storage Unit Processor Improved Signal Interpreter Hackware Hacking Suite Protection Medium Reactive Plating Weapon Gauss Rifle Energy Gun Gatling Laser Energy Cannon Neutron Cannon Ballistic Gun Gauss Rifle Ballistic Cannon Improved Light Cannon Launcher Rocket Launcher Impact Weapon Power Maul Build | -11 -10 -9 -8 -7 -6 -6 -6 -5 ------- Run | Scr Mat Mat Mat Fac Fac Low Low Fac Slots Evolved 10 | . . 2 2 2 2 . . 2 Power 1 | . . . . . . . . 1 Propulsion 2 | . . 1 . 1 . . . . Utility 6 | . . 1 1 1 2 . . 1 Weapon 1 | . . . 1 . . . . . Parts Attached 92 | . 2 6 9 9 6 5 2 53 Power 13 | . . . 1 . 1 . . 11 Engine 7 | . . . 1 . . . . 6 Core 3 | . . . . . . . . 3 Reactor 3 | . . . . . 1 . . 2 Propulsion 26 | . . 3 2 3 1 2 1 14 Treads 22 | . . 3 2 3 1 2 1 10 Leg 4 | . . . . . . . . 4 Wheel . | . . . . . . . . . Hover . | . . . . . . . . . Flight . | . . . . . . . . . Utility 19 | . 2 2 3 1 2 2 1 6 Device 8 | . . . 1 1 1 1 1 3 Storage 2 | . 1 1 . . . . . . Processor 1 | . . . 1 . . . . . Hackware 2 | . . . 1 . . . . 1 Protection 6 | . 1 1 . . 1 1 . 2 Artifact . | . . . . . . . . . Weapon 34 | . . 1 3 5 2 1 . 22 Energy Gun 5 | . . . 1 1 . . . 3 Energy Cannon 3 | . . . . 1 . . . 2 Ballistic Gun 11 | . . . 1 1 1 1 . 7 Ballistic Cannon 8 | . . 1 1 . . . . 6 Launcher 6 | . . . . 2 1 . . 3 Special Weapon . | . . . . . . . . . Impact Weapon 1 | . . . . . . . . 1 Slashing Weapon . | . . . . . . . . . Piercing Weapon . | . . . . . . . . . Special Melee Weapon . | . . . . . . . . . Unidentified Prototypes 2 | . . . 1 . 1 . . . Parts Lost 49 | . . . 5 3 2 1 2 36 Power 9 | . . . 1 . . . . 8 Propulsion 13 | . . . 1 2 . 1 1 8 Utility 12 | . . . 2 . 1 . 1 8 Weapon 15 | . . . 1 1 1 . . 12 Highest Loss Streak 18 | . . . 2 1 1 1 1 18 Average Slot Usage (%) 92 | . 97 94 91 99 88 96 98 84 Engine 3 | . 14 11 9 7 . . . 2 Reactor 3 | . . . . . 5 6 6 3 Treads 22 | . . 25 27 29 26 22 26 18 Leg 1 | . 28 4 . . . . . 1 Device 15 | . . . 2 15 9 19 20 20 Storage 6 | . 14 11 9 7 6 6 6 5 Processor 4 | . . . 5 7 6 6 6 2 Hackware 5 | . . . 2 7 6 6 6 5 Protection 5 | . 11 18 9 . 4 6 5 1 Energy Gun 5 | . 14 11 6 7 6 6 6 1 Ballistic Gun 8 | . 14 1 9 5 9 12 13 3 Ballistic Cannon 4 | . . 9 11 6 . . . 7 Naked Turns . | . . . . . . . . . Heaviest Build 100 | 11 29 55 60 58 70 89 87 100 Greatest Support 112 | 20 20 60 63 83 80 96 96 112 Greatest Overweight (x) 25 | . 1 1 . . . 1 . 25 Average Overweight (x) . | . . . . . . . . . Largest Inventory Capacity 20 | . 15 20 20 20 20 20 20 20 Average Capacity 19 | . 13 18 20 20 20 20 20 20 Most Carried 20 | . 7 9 12 17 20 20 18 20 Average Carried 14 | . 6 7 9 14 18 14 16 15 Final Capacity 20 | 8 15 20 20 20 20 20 20 20 Final Carried 20 | 6 7 9 12 17 20 16 18 7 Class Distribution -------------------- 41% | Scavenger-Tank 16% | Hacker-Skirmisher 10% | Mutant 7% | Scavenger-Skirmisher 7% | Hacker-Mutant 4% | Tank Dominant Class ---------------- Mutant | -10/Materials Mutant | -9/Materials Tank | -8/Materials Hacker-Skirmisher | -7/Factory Scavenger-Tank | -6/Factory Scavenger-Tank | -6/Lower Caves Scavenger-Tank | -6/Lower Caves Hacker-Skirmisher | -5/Factory Resources | -11 -10 -9 -8 -7 -6 -6 -6 -5 ----------- Run | Scr Mat Mat Mat Fac Fac Low Low Fac Matter Collected 3425 | 200 . 160 393 301 300 181 146 1744 Remotely . | . . . . . . . . . Salvage Created 5104 | . . 300 756 654 510 385 377 2122 Parts 235 | . . 21 33 33 36 13 18 81 Haulers Intercepted 1 | . . . . . . . . 1 Recyclers Shooed 6 | . . . . . . . . 6 Parts Field Recycled . | . . . . . . . . . Retrieved Matter . | . . . . . . . . . Parts Self-Destructed 28 | . . . . . . 12 16 . Prevented 1 | . . . . . . 1 . . Kills | -11 -10 -9 -8 -7 -6 -6 -6 -5 ------- Run | Scr Mat Mat Mat Fac Fac Low Low Fac Combat Hostiles Destroyed 107 | . . 5 17 13 11 9 9 43 Guns 50 | . . 3 4 5 9 9 9 11 Cannons 41 | . . 2 11 6 . . . 22 AOE 14 | . . . 2 2 2 . . 8 Classes Destroyed 17 | . . 4 2 5 3 . . 3 Worker 7 | . . . . 2 . . . 5 Builder 5 | . . . 2 1 2 . . . Tunneler 2 | . . 1 . . 1 . . . Hauler 1 | . . . . . . . . 1 Recycler 4 | . . . . . 1 . . 3 Mechanic 1 | . . . . . . . . 1 Operator 1 | . . . . . . . . 1 Watcher 8 | . . 2 2 2 . . . 2 Swarmer 30 | . . . 3 . 8 3 3 13 Grunt 36 | . . 1 10 3 . 5 3 14 Brawler 1 | . . . . . 1 . . . Duelist 3 | . . . . . 1 1 1 . Sentry 18 | . . 4 4 4 1 . 1 4 Specialist 2 | . . . . 2 . . . . Hunter 5 | . . . . 2 . . . 3 Programmer 11 | . . . . 1 . . 1 9 Heavy 1 | . . . . 1 . . . . Best Kill Streak 12 | . . 2 5 5 6 4 3 12 Combat Bots Only 11 | . . 2 5 5 5 4 3 11 Max Kills in Single Turn 6 | . . 1 2 2 2 1 1 6 Gunslinging . | . . . . . . . . . Exploded 4 | . . . 1 1 2 . . 4 Melee . | . . . . . . . . . Uniques/NPCs Destroyed . | . . . . . . . . . Combat | -11 -10 -9 -8 -7 -6 -6 -6 -5 -------- Run | Scr Mat Mat Mat Fac Fac Low Low Fac Damage Taken 8517 | . . 180 892 658 499 292 356 5640 Core 1326 | . . 24 89 150 50 7 . 1006 Absorbed by Shields . | . . . . . . . . . Core Remaining (%) 91 | 100 100 94 83 78 . . 93 . Volleys Fired 283 | . . 20 40 31 20 17 19 136 Largest 3 | . . 2 3 3 3 3 3 3 Hottest 245 | . . 79 112 147 141 136 136 245 Shots Fired 731 | . . 40 118 93 56 48 57 319 Gun 396 | . . 20 66 54 52 48 57 99 Cannon 314 | . . 20 52 31 . . . 211 Launcher 21 | . . . . 8 4 . . 9 Special . | . . . . . . . . . Kinetic 488 | . . 20 92 49 32 34 38 223 Thermal 120 | . . . . 14 20 14 19 53 Explosive 19 | . . . . 8 4 . . 7 Electromagnetic 104 | . . 20 26 22 . . . 36 Robot Hit Streak 33 | . . 15 16 32 25 33 20 23 Robot Miss Streak 4 | . . 1 2 2 4 2 3 3 Penetration Max 1 | . . . . . 1 1 . 1 Secondary Targets 4 | . . . . . . 2 1 1 Max Gunslinging Chain 1 | . . . . . . 1 1 1 Shots Hit Robots 549 | . . 30 82 73 43 42 47 232 Core Hits 303 | . . 10 39 60 41 22 27 104 Critical Kills 2 | . . . . . 1 . . 1 Critical Parts Destroyed 4 | . . . . . . . . 4 Critical Strikes 23 | . . 1 1 . 1 . . 20 Destroy 5 | . . . . . 1 . . 4 Blast 17 | . . 1 1 . . . . 15 Smash 1 | . . . . . . . . 1 Melee Attacks 13 | . . . . . . . . 13 Impact 13 | . . . . . . . . 13 Slashing . | . . . . . . . . . Piercing . | . . . . . . . . . Sneak Attacks 1 | . . . . . . . . 1 Combat Hostiles 1 | . . . . . . . . 1 Follow-up Attacks . | . . . . . . . . . Damage Inflicted 15157 | . . 542 1695 1817 1033 872 1038 8160 Guns 6597 | . . 289 781 958 928 872 1038 1731 Cannons 6408 | . . 253 685 524 . . . 4946 Explosions 1639 | . . . 229 335 105 . . 970 Melee 513 | . . . . . . . . 513 Ramming . | . . . . . . . . . Kinetic 8547 | . . 253 1199 730 458 564 626 4717 Thermal 3247 | . . . 229 377 470 308 412 1451 Explosive 1153 | . . . . 335 105 . . 713 Electromagnetic 1697 | . . 289 267 375 . . . 766 Impact 513 | . . . . . . . . 513 Slashing . | . . . . . . . . . Piercing . | . . . . . . . . . Highest Corruption 10 | . . . . . . . . 10 Average Corruption 6 | . . . . . . . . 6 Corruption Purged . | . . . . . . . . . Effects 31 | . . . . . . . . 31 Message Errors 9 | . . . . . . . . 9 Matter Fused 3 | . . . . . . . . 3 Heat Flow Errors 2 | . . . . . . . . 2 Energy Discharges 4 | . . . . . . . . 4 Data Loss (minor) 5 | . . . . . . . . 5 Data Loss (major) 1 | . . . . . . . . 1 Misfires 2 | . . . . . . . . 2 Alerts 1 | . . . . . . . . 1 Weapon Failures 4 | . . . . . . . . 4 Overload Shots . | . . . . . . . . . Overflow Damage 442 | . . 14 43 40 26 . . 319 Projectiles 300 | . . 14 19 40 . . . 227 Explosions 50 | . . . 24 . 26 . . . Melee 92 | . . . . . . . . 92 Knockbacks 39 | . . . 3 2 . . . 34 Impact . | . . . . . . . . . Kinetic 35 | . . . 3 2 . . . 30 Secondary 4 | . . . . . . . . 4 Self-Inflicted Damage 208 | . . . 111 . 32 . . 65 Shots 6 | . . . 3 . 1 . . 2 Rammed . | . . . . . . . . . Targets Rammed . | . . . . . . . . . Kicked . | . . . . . . . . . Crushed . | . . . . . . . . . Highest Temperature 351 | . . 198 351 48 14 34 24 301 Average Temperature 79 | . . 53 116 16 10 19 10 83 Received Heat Transfer 2718 | . . 84 513 195 48 126 117 1635 Effects 2 | . . . 2 . . . . . Energy Bleed 1 | . . . 1 . . . . . Damage (minor) 1 | . . . 1 . . . . . Siege Activations . | . . . . . . . . . Robots Corrupted . | . . . . . . . . . Combat Hostiles . | . . . . . . . . . Parts Fried . | . . . . . . . . . Impact Corruptions 8 | . . . . . . . . 8 Robots Melted . | . . . . . . . . . Combat Hostiles . | . . . . . . . . . Parts Melted 5 | . . . 1 1 1 . 1 1 Heat Transferred 4772 | . . . 250 875 1075 700 863 1009 Parts Sabotaged . | . . . . . . . . . Parts Stolen . | . . . . . . . . . Parts Stripped . | . . . . . . . . . Power Chain Reactions 3 | . . . 3 . . . . . Missiles Intercepted . | . . . . . . . . . Alert | -11 -10 -9 -8 -7 -6 -6 -6 -5 ------- Run | Scr Mat Mat Mat Fac Fac Low Low Fac Peak Influence 551 | . . 229 377 413 399 . . 551 Initial 174 | . . . 17 68 174 . . 44 Average 268 | . . 114 217 153 295 . . 388 Maximum Alert Level 2 | . . 1 1 2 1 . . 2 Low Security (%) 35 | . 100 88 52 60 20 . . 5 Level 1 44 | . . 11 47 34 79 . . 50 Level 2 19 | . . . . 4 . . . 43 Level 3 . | . . . . . . . . . Level 4 . | . . . . . . . . . Level 5 . | . . . . . . . . . High Security . | . . . . . . . . . Max Security . | . . . . . . . . . Squads Dispatched 27 | . . 1 7 4 3 . 1 11 Investigation 1 | . . . 1 . . . . . Extermination 6 | . . . . . . . . 6 Reinforcement 14 | . . 1 5 4 . . . 4 Assault 2 | . . . . . . . 1 1 Garrison 4 | . . . 1 . 3 . . . Intercept . | . . . . . . . . . Construction Impeded 2 | . . . 1 1 . . . . Haulers Reinforced 2 | . . . . . . . . 2 Active Scanning Responses . | . . . . . . . . . Cargo Convoy Interrupts 1 | . . . . 1 . . . . Stealth | -11 -10 -9 -8 -7 -6 -6 -6 -5 --------- Run | Scr Mat Mat Mat Fac Fac Low Low Fac Distress Signals 4 | . . . 1 2 . . . 1 Communications Jammed 33 | . . . . . . . 1 32 Distress Signals 29 | . . . . . . . 1 28 Times Spotted 176 | . 1 8 30 24 12 10 17 74 Peak Tracking Total 8 | . 1 3 4 6 4 4 5 8 Tactical Retreats 19 | . . . 2 1 1 1 5 9 Traps | -11 -10 -9 -8 -7 -6 -6 -6 -5 ------- Run | Scr Mat Mat Mat Fac Fac Low Low Fac Traps Triggered 3 | . . . 1 . . . . 2 Indirectly . | . . . . . . . . . Trap Hack Attempts . | . . . . . . . . . Triggered . | . . . . . . . . . Disarmed . | . . . . . . . . . Reprogrammed . | . . . . . . . . . Reused . | . . . . . . . . . Traps Extracted . | . . . . . . . . . Installed . | . . . . . . . . . Triggered 2 | . . . . 1 . 1 . . Machines | -11 -10 -9 -8 -7 -6 -6 -6 -5 ---------- Run | Scr Mat Mat Mat Fac Fac Low Low Fac Machines Disabled 9 | . . . 2 1 . . . 6 Max in Single Turn 2 | . . . 2 1 . . . 1 Machines Sabotaged . | . . . . . . . . . Garrisons Compromised 1 | . . . . 1 . . . . Overloaded Fab Kills . | . . . . . . . . . Hacking | -11 -10 -9 -8 -7 -6 -6 -6 -5 --------- Run | Scr Mat Mat Mat Fac Fac Low Low Fac Machines Accessed 9 | . . . . 1 1 3 . 4 Terminals 4 | . . . . 1 1 . . 2 Fabricators 1 | . . . . . . . . 1 Repair Stations . | . . . . . . . . . Recycling Units . | . . . . . . . . . Scanalyzers . | . . . . . . . . . Garrison Access 1 | . . . . . . . . 1 Total Hacks 16 | . . . . 1 1 7 . 7 Successful 12 | . . . . 1 1 7 . 3 Failed 4 | . . . . . . . . 4 Catastrophic 1 | . . . . . . . . 1 Database Lockouts . | . . . . . . . . . Manual 3 | . . . . . . . . 3 Terminals 4 | . . . . 1 1 . . 2 Fabricators 3 | . . . . . . . . 3 Repair Stations . | . . . . . . . . . Recycling Units . | . . . . . . . . . Scanalyzers . | . . . . . . . . . Garrison Access 2 | . . . . . . . . 2 Terminal Hacks 10 | . . . . 1 1 7 . 1 Record 5 | . . . . . . 5 . . Open Door 2 | . . . . . . 2 . . Open DSF 2 | . . . . 1 1 . . . Zone Layout 1 | . . . . . . . . 1 Fabricator Hacks 2 | . . . . . . . . 2 Network Status 2 | . . . . . . . . 2 Repair Station Hacks . | . . . . . . . . . Recycling Unit Hacks . | . . . . . . . . . Scanalyzer . | . . . . . . . . . Garrison Access Hacks . | . . . . . . . . . Unauthorized Hacks . | . . . . . . . . . Terminals . | . . . . . . . . . Fabricators . | . . . . . . . . . Repair Stations . | . . . . . . . . . Recycling Units . | . . . . . . . . . Scanalyzers . | . . . . . . . . . Garrison Access . | . . . . . . . . . Data Cores Recovered 1 | . . . . . . . . 1 Used . | . . . . . . . . . Hacking Detections 2 | . . . . 1 . . . 1 Full Trace Events . | . . . . . . . . . Feedback Events . | . . . . . . . . . Feedback Blocked . | . . . . . . . . . Robot Schematics Acquired . | . . . . . . . . . Robots Built . | . . . . . . . . . Authchips . | . . . . . . . . . Time . | . . . . . . . . . Total Robot Build Rating . | . . . . . . . . . Part Schematics Acquired . | . . . . . . . . . Parts Built . | . . . . . . . . . Authchips . | . . . . . . . . . Time . | . . . . . . . . . Total Part Build Rating . | . . . . . . . . . Parts Repaired . | . . . . . . . . . Time . | . . . . . . . . . Parts Recycled . | . . . . . . . . . Recycled Matter . | . . . . . . . . . Retrieved Matter . | . . . . . . . . . Retrieved Components . | . . . . . . . . . Parts Scanalyzed . | . . . . . . . . . Part Schematics Acquired . | . . . . . . . . . Parts Damaged . | . . . . . . . . . Bothacking | -11 -10 -9 -8 -7 -6 -6 -6 -5 ------------ Run | Scr Mat Mat Mat Fac Fac Low Low Fac Used RIF Installer . | . . . . . . . . . Robots Hacked . | . . . . . . . . . Non-combat . | . . . . . . . . . Combat . | . . . . . . . . . Robot Hacks Applied . | . . . . . . . . . Relay Couplers Released . | . . . . . . . . . Fabnet Peak Effective % . | . . . . . . . . . Robots Rewired . | . . . . . . . . . Allies Hacked . | . . . . . . . . . Hacks Repelled . | . . . . . . . . . Allies | -11 -10 -9 -8 -7 -6 -6 -6 -5 -------- Run | Scr Mat Mat Mat Fac Fac Low Low Fac Total Allies 3 | . . . . . . 3 . . Largest Group 3 | . . . . . . 3 3 . Highest-Rated Group 93 | . . . . . . 93 93 . Highest-Rated Ally 31 | . . . . . . 31 31 . Total Orders 2 | . . . . . . . . 2 ROAM 1 | . . . . . . . . 1 EXPLORE 1 | . . . . . . . . 1 Ally Attacks . | . . . . . . . . . Total Damage . | . . . . . . . . . Kills . | . . . . . . . . . Allies Corrupted . | . . . . . . . . . Allies Melted . | . . . . . . . . . Intel | -11 -10 -9 -8 -7 -6 -6 -6 -5 ------- Run | Scr Mat Mat Mat Fac Fac Low Low Fac Robot Analysis Total . | . . . . . . . . . Derelict Logs Recovered 2 | . . . . . . 2 . . Drone Launches 2 | . . . . . . . . 2 Drone Recoveries 1 | . . . . . . . . 1 Exploration | -11 -10 -9 -8 -7 -6 -6 -6 -5 ------------- Run | Scr Mat Mat Mat Fac Fac Low Low Fac Turns Passed 8675 | . 331 455 848 770 694 2835 470 2272 Spaces Moved 3966 | 1 111 207 402 374 379 1335 203 954 Core 2 | . . . . . . . . 2 Treads 3703 | . . 161 402 374 379 1335 203 849 Legs 261 | 1 111 46 . . . . . 103 Wheels . | . . . . . . . . . Hover . | . . . . . . . . . Flight . | . . . . . . . . . Fastest Speed 120 | 120 120 160 160 160 162 162 162 120 Average Speed 176 | 120 151 166 160 160 162 202 162 166 Slowest Speed 1300 | 120 190 190 160 160 162 243 162 1300 Overloaded Moves . | . . . . . . . . . Propulsion Burnouts . | . . . . . . . . . Robots Hopped . | . . . . . . . . . Cave-ins Triggered . | . . . . . . . . . Exploration Rate (%) 29 | 2 28 33 37 15 9 96 21 25 Regions Visited 8 Branch Regions 2 Pre-discovered Areas 1 | . . . . . . 1 . . Known Exits Taken 5 | . . . 1 1 1 1 1 . Unknown Exits Taken 3 | 1 1 1 . . . . . . Scrap Searched 10 | . . . . . . 9 1 . Spaces Dug 19 | . . . . 5 . . . 14 Terrain Destroyed 192 | . . . 28 43 25 . 3 93 Melee . | . . . . . . . . . Projectile 66 | . . . 3 . 2 . 3 58 AOE 126 | . . . 25 43 23 . . 35 Terrain Rammed . | . . . . . . . . . Walls Destroyed . | . . . . . . . . . Machines Disabled . | . . . . . . . . . Actions | -11 -10 -9 -8 -7 -6 -6 -6 -5 --------- Run | Scr Mat Mat Mat Fac Fac Low Low Fac Total 5027 | . 274 278 516 472 411 1429 298 1349 Wait 571 | . 158 37 56 48 1 55 70 146 Move 3958 | . 110 206 401 373 378 1334 202 954 Hop . | . . . . . . . . . Pick Up 81 | . 3 6 10 10 6 7 4 35 Fast Attach 2 | . . . . . . 2 . . Attach 65 | . 1 5 7 6 3 1 1 41 Detach 3 | . . 1 . 1 . . . 1 Swap 25 | . 1 1 2 3 3 2 1 12 Drop 26 | . 1 2 . . . 11 1 11 Fire 283 | . . 20 40 31 20 17 19 136 Melee 13 | . . . . . . . . 13 Ram . | . . . . . . . . . Kick . | . . . . . . . . . Crush . | . . . . . . . . . Escape Stasis . | . . . . . . . . . Rewire . | . . . . . . . . . Trap . | . . . . . . . . . Miscellaneous . | . . . . . . . . . Route ------- -11/Scrapyard -10/Materials -9/Materials -8/Materials -7/Factory -6/Factory -6/Lower Caves -6/Lower Caves -5/Factory (discovered 1 exit: Fac) History --------- Turn | Location | Event 1 | -11/Scrapyard | Discovered new exit (range 0) 1 | -11/Scrapyard | Entered Materials 122 | -10/Materials | Discovered new exit (range 11) 309 | -10/Materials | Build established: Mutant 332 | -10/Materials | Entered another Materials area 332 | -9/Materials | Evolved 2 slots: Propulsion x1, Utility x1 780 | -9/Materials | Discovered new exit (range 4) 787 | -9/Materials | Entered another Materials area 787 | -8/Materials | Evolved 2 slots: Utility x1, Weapon x1 1220 | -8/Materials | Garrison activated, responded to threat 1609 | -8/Materials | Discovered new exit (range 15) 1633 | -8/Materials | Identified exit to Factory 1635 | -8/Materials | Entered Factory 1635 | -7/Factory | Evolved 2 slots: Propulsion x1, Utility x1 1923 | -7/Factory | Build established: Hacker-Skirmisher 2164 | -7/Factory | Cargo convoy interrupted 2374 | -7/Factory | Discovered new exit (range 14) 2403 | -7/Factory | Identified exit to Factory 2405 | -7/Factory | Entered another Factory area 2405 | -6/Factory | Evolved 2 slots: Utility x2 2426 | -6/Factory | Build established: Scavenger-Skirmisher 2510 | -6/Factory | Garrison activated, responded to threat 2737 | -6/Factory | Discovered new exit (range 16) 2809 | -6/Factory | Build established: Scavenger-Tank 2817 | -6/Factory | Identified exit to Lower Caves 3099 | -6/Factory | Entered Lower Caves 4023 | -6/Lower Caves | Encountered a Warlord checkpoint 4184 | -6/Lower Caves | Learned Factory terminal intel 4281 | -6/Lower Caves | Discovered new exit (range 8) 4298 | -6/Lower Caves | Identified exit to Lower Caves 4448 | -6/Lower Caves | Learned location of Extension (-6) 4752 | -6/Lower Caves | A Commander dispatched an escort 4767 | -6/Lower Caves | Learned location of 1 exit from Factory 4767 | -6/Lower Caves | Learned Extension garrison access intel 5934 | -6/Lower Caves | Entered another Lower Caves area 5934 | -6/Lower Caves | Accompanied by 3 allies 5935 | -6/Lower Caves | Commander's escort returned to base 5935 | -6/Lower Caves | Commander's escort returned to base 5935 | -6/Lower Caves | Commander's escort returned to base 6035 | -6/Lower Caves | Attracted the attention of an 0b10 outpost 6346 | -6/Lower Caves | Discovered new exit (range 6) 6354 | -6/Lower Caves | Identified exit to Factory 6404 | -6/Lower Caves | Entered Factory 6404 | -5/Factory | Evolved 2 slots: Power x1, Utility x1 6405 | -5/Factory | Identified exit to Factory 6406 | -5/Factory | Loaded intel: 26 terminal locations 6586 | -5/Factory | Destroyed 11 combat bots 6592 | -5/Factory | Lost 3 parts (1u2w) 6922 | -5/Factory | Build established: Hacker-Skirmisher 7523 | -5/Factory | Spotted B-75 Beast 8101 | -5/Factory | Core integrity fell below 50% 8155 | -5/Factory | Lost 18 parts (4p5n4u5w) 8181 | -5/Factory | System corruption reached 10% 8204 | -5/Factory | First assault squad dispatched 8381 | -5/Factory | Build established: Hacker-Mutant 8438 | -5/Factory | Core integrity fell below 20% 8508 | -5/Factory | Lost 12 parts (3p3n1u5w) 8676 | -5/Factory | Destroyed by S-27 Virus with Autogun Last Messages --------------- 08532_ Acquired 9 matter. 08533_ Acquired 39 matter. 08535_ Acquired 5 matter. 08539_ System corrupted: IFF burst signal emitted. 08552_ Acquired 29 matter. 08562_ U-05 Engineer builds a Wall. 08563_ JDAZGSOPQT4GV PCGV GHYF2I :OBE&E9Z 08571_ Acquired Gauss Rifle. 08574_ Acquired 10 matter. 08581_ Acquired Adv. Heat Sink. 08593_ System corrupted: Matter fused (-9). 08595_ Acquired 6 matter. 08601_ Acquired 7 matter. 08616_ System corrupted: Matter fused (-9). 08637_ System corrupted: Energy discharge (-41). 08653_ Acquired Mic. Fission Core. 08654_ ALERT: Rogue bot located, Programmers report to Factory Zone 8B. 08671_ UA&J JW4J&